Cogmind - Beta 16.1 @@@ ROGUE MODE // 2026.05.03 @ 18:52:05 Player: Stavbearer Result: Destroyed by B-75 Beast with Magnetic Acceleration Cannon Performance ------------- Evolutions (4) 2000 Regions Visited (12) 2400 Robots Destroyed (85) 425 Value Destroyed (3071) 3071 Prototype IDs (32) 640 Alien Tech Used (0) 0 Bonus (684) 684 TOTAL SCORE: 9220 Bonus ------- Follower Combat Kills 105 Aligned with FarCom 300 Met Imprinter 300 Friendly Fire -21 Cogmind --------- Core Integrity 0/850 Matter 142/300 Energy 99/100 System Corruption 2% Temperature Cool (12) Movement Core (200) Ox3 Location -6/Extension Parts ------- > --- POWER (1) -------- (None) > --- PROPULSION (4) --- (None) > --- UTILITY (7) ------ Medium Storage Unit Advanced Targeting Computer Experimental Targeting Computer Improved Target Analyzer > --- WEAPON (3) ------- (None) > --- INVENTORY (10) --- Light Angular Momentum Engine Myomer Leg Advanced Heat Sink Superbattery (1500) Hacking Drone Bay (1/1) Gatling Laser High-powered Shotgun Heavy Flak Cannon Heavy Rocket Launcher Great Maul Peak State ------------ > --- POWER ------------ Neutrino Core > --- PROPULSION ------- Improved Medium Treads Carbon-fiber Leg Myomer Leg Compact Wheel > --- UTILITY ---------- Advanced Heat Sink Medium Storage Unit Advanced Targeting Computer Experimental Targeting Computer Improved Target Analyzer Weapon Cycler Improved Light Armor Plating > --- WEAPON ----------- Magnetic Acceleration Cannon Magnetic Acceleration Cannon Magnetic Acceleration Cannon > --- INVENTORY -------- Light Angular Momentum Engine Light Fission Core Advanced Heat Sink Superbattery Hacking Drone Bay Gatling Laser High-powered Shotgun Heavy Flak Cannon Heavy Rocket Launcher Makeshift Axe [Rating: 69] Favorites ----------- Power Neutrino Core Engine Light Ion Engine Power Core Neutrino Core Propulsion Armored Leg Treads Light Treads Leg Armored Leg Wheel Compact Wheel Hover Unit Gravmag System Flight Unit Improved Cesium-ion Thruster Utility Small Storage Unit Device Improved Heat Sink Storage Small Storage Unit Processor Improved Targeting Computer Hackware Hacking Suite Protection Improved Light Armor Plating Weapon Gatling Laser Energy Gun Gatling Laser Energy Cannon Plasma Cannon Ballistic Gun Flak Gun Ballistic Cannon Magnetic Acceleration Cannon Launcher Heavy Rocket Launcher Special Weapon RU-N14's Throwing Claymores Impact Weapon Great Maul Slashing Weapon Makeshift Axe Build | -11 -10 -10 -10 -9 -8 -7 -7 -7 -7 -6 -6 -6 ------- Run | Yrd Mat Min Exi Min Mat Fac Low Low Zio Pro Fac Ext Slots Evolved 8 | . . . . . 4 2 . . . . 2 . Power . | . . . . . . . . . . . . . Propulsion 2 | . . . . . . 1 . . . . 1 . Utility 5 | . . . . . 3 1 . . . . 1 . Weapon 1 | . . . . . 1 . . . . . . . Parts Attached 104 | 7 . 4 . 7 17 13 3 2 4 15 10 22 Power 13 | 1 . 1 . 1 4 . . 1 . 2 1 2 Engine 3 | 1 . . . 1 . . . . . 1 . . Core 10 | . . 1 . . 4 . . 1 . 1 1 2 Reactor . | . . . . . . . . . . . . . Propulsion 25 | 2 . . . 2 3 3 1 . . 5 2 7 Treads 4 | . . . . . . . . . . . 1 3 Leg 12 | . . . . . 2 2 1 . . 5 . 2 Wheel 7 | 2 . . . 2 1 . . . . . . 2 Hover 1 | . . . . . . . . . . . 1 . Flight 1 | . . . . . . 1 . . . . . . Utility 32 | 2 . 1 . 3 5 5 . . 2 5 3 6 Device 17 | 1 . 1 . 3 4 . . . 2 2 1 3 Storage 3 | 1 . . . . . 1 . . . . . 1 Processor 5 | . . . . . 1 . . . . 1 2 1 Hackware 1 | . . . . . . 1 . . . . . . Protection 6 | . . . . . . 3 . . . 2 . 1 Artifact . | . . . . . . . . . . . . . Weapon 34 | 2 . 2 . 1 5 5 2 1 2 3 4 7 Energy Gun 11 | . . 1 . . 3 3 2 1 . . 1 . Energy Cannon 5 | . . 1 . 1 . 2 . . 1 . . . Ballistic Gun 6 | 2 . . . . . . . . . 2 2 . Ballistic Cannon 6 | . . . . . 1 . . . . . 1 4 Launcher 1 | . . . . . . . . . . . . 1 Special Weapon 1 | . . . . . . . . . 1 . . . Impact Weapon 1 | . . . . . . . . . . . . 1 Slashing Weapon 3 | . . . . . 1 . . . . 1 . 1 Piercing Weapon . | . . . . . . . . . . . . . Special Melee Weapon . | . . . . . . . . . . . . . Unidentified Prototypes 6 | . . . . 1 . 1 . . 3 . 1 . Parts Lost 52 | . . . . 3 6 3 2 . . 18 6 14 Power 7 | . . . . 1 1 . 1 . . 2 1 1 Propulsion 17 | . . . . 1 2 1 . . . 6 1 6 Utility 14 | . . . . 1 . 2 . . . 5 3 3 Weapon 14 | . . . . . 3 . 1 . . 5 1 4 Highest Loss Streak 9 | . . . . 3 6 2 1 . . 4 6 9 To Critical Strikes . | . . . . . . . . . . . . . Average Backups 6 | 1 4 6 7 6 6 5 7 7 8 7 4 8 Power . | . 1 1 . . 1 . . . . . . 1 Propulsion . | . 1 1 1 . . . . . . 1 . . Utility 3 | . 1 2 3 3 3 3 4 4 4 4 1 2 Weapon 2 | . 1 1 2 2 1 1 2 2 3 1 2 4 Tool/Special . | . . . . . . . . . . . . . Unused Backups 10 | . . . 1 1 3 . . 1 1 . . 3 Power 4 | . . . 1 . . . . . . . . 3 Propulsion . | . . . . . . . . . . . . . Utility 2 | . . . . . 1 . . 1 . . . . Weapon 3 | . . . . 1 2 . . . . . . . Tool/Special 1 | . . . . . . . . . 1 . . . Average Slot Usage (%) 91 | . 100 100 100 96 85 95 94 98 100 85 73 92 Engine 1 | . 14 12 . 12 . . . . . 1 1 . Core 5 | . . 1 14 . 8 7 5 5 7 4 3 5 Treads 1 | . . . . . . . . . . . 4 6 Leg 11 | . . . . . 2 18 19 23 23 19 1 4 Wheel 6 | . 28 28 28 27 13 . . . . . . 6 Device 15 | . 14 14 14 12 18 15 15 15 22 17 12 12 Storage 12 | . 14 14 14 14 9 8 15 15 15 15 13 8 Processor 9 | . . . . . 8 7 7 7 7 5 15 19 Protection 3 | . . . . . . 6 7 7 . 5 1 4 Energy Gun 9 | . . 1 14 14 11 5 18 23 19 3 4 1 Energy Cannon 4 | . . 13 14 14 6 8 3 . 2 2 . . Ballistic Gun 1 | . 28 13 . . . . . . . 2 5 1 Ballistic Cannon 3 | . . . . . 3 . . . . . 4 14 Slashing Weapon 1 | . . . . . 1 5 . . . 4 2 1 Peak Build Rating 69 | 7 7 11 12 19 37 48 52 56 65 61 55 69 Average Rating 44 | 5 7 7 11 15 32 40 48 54 60 49 46 58 On Entrance 29 | . 7 7 11 12 19 25 47 49 56 61 40 55 Avg Prop Armor Cover (%) 8 | . . . . . . 1 . . . . 4 9 Naked Turns . | . . . . . . . . . . . . . Heaviest Build 53 | 13 13 17 17 26 38 38 38 44 42 46 36 53 Greatest Support 60 | 26 26 26 26 26 26 44 47 47 47 60 20 32 Greatest Overweight (x) 8 | . . . . . 8 1 1 . . 2 3 3 Average Overweight (x) . | . . . . . . . . . . . 1 1 Largest Inventory Capacity 10 | 8 8 8 8 8 8 8 8 8 8 8 8 10 Average Capacity 8 | 7 8 8 8 8 8 7 8 8 8 8 8 9 Most Carried 10 | 4 4 8 8 8 8 7 8 8 8 8 5 10 Average Carried 7 | 1 4 6 8 7 6 5 7 7 7 7 4 8 Final Capacity 10 | 8 8 8 8 8 8 8 8 8 8 8 8 10 Final Carried 10 | 4 4 8 8 6 7 7 8 8 8 5 5 10 Scrap Suit Usage (%) 7 | . . . . . 78 . . . . . . . Parts Cannibalized 1 | . . . . . 1 . . . . . . . Class Distribution -------------------- 26% | Gunner 26% | Mutant 17% | Scavenger-Gunner 15% | Scavenger-Mutant 8% | Skirmisher Dominant Class ---------------- Mutant | -10/Materials Mutant | -10/Mines Mutant | -10/Exiles Scavenger-Mutant | -9/Mines Skirmisher | -8/Materials Scavenger-Mutant | -7/Factory Gunner | -7/Lower Caves Gunner | -7/Lower Caves Gunner | -7/Zion Mutant | -6/Proximity Caves Gunner | -6/Factory Scavenger-Gunner | -6/Extension Resources | -11 -10 -10 -10 -9 -8 -7 -7 -7 -7 -6 -6 -6 ----------- Run | Yrd Mat Min Exi Min Mat Fac Low Low Zio Pro Fac Ext Matter Collected 2333 | 238 16 30 . 165 317 155 84 49 80 216 66 917 Remotely . | . . . . . . . . . . . . . Salvage Created 3666 | 130 16 82 . 197 739 305 684 115 . 467 111 820 Parts 150 | 10 4 4 . 11 35 16 15 2 . 14 8 31 Haulers Intercepted 1 | . . . . . 1 . . . . . . . Recyclers Shooed 3 | . . . . . . 2 . . . . . 1 Parts Field Recycled . | . . . . . . . . . . . . . Retrieved Matter . | . . . . . . . . . . . . . Parts Self-Destructed 28 | . . . . . . . 11 2 . 15 . . Prevented 3 | . . . . . . . 3 . . . . . Parts Restored . | . . . . . . . . . . . . . Kills | -11 -10 -10 -10 -9 -8 -7 -7 -7 -7 -6 -6 -6 ------- Run | Yrd Mat Min Exi Min Mat Fac Low Low Zio Pro Fac Ext Combat Hostiles Destroyed 60 | . . 2 . 2 13 5 14 1 . 9 2 12 Melee 9 | . . . . . 1 3 . . . 3 1 1 Guns 29 | . . 1 . 1 4 2 11 1 . 5 . 4 Cannons 21 | . . 1 . 1 7 . 3 . . 1 1 7 Classes Destroyed 15 | 2 1 1 . 2 4 1 2 . . . . 2 Worker 3 | . . . . 1 1 1 . . . . . . Builder 1 | . . . . . . . . . . . . 1 Tunneler 3 | 2 . . . 1 . . . . . . . . Hauler 1 | . . . . . 1 . . . . . . . Recycler 7 | 1 . . . 2 . 1 . . . . . 3 Operator 1 | . . . . . . . . . . . . 1 Watcher 7 | . 1 . . . 3 . . . . . 1 2 Swarmer 12 | . . . . 2 3 2 1 . . . . 4 Grunt 22 | . . 2 . . 3 1 7 . . 6 . 3 Brawler 1 | . . . . . . . 1 . . . . . Duelist 2 | . . . . . . . 2 . . . . . Sentry 14 | . . . . . 5 1 2 . . 1 1 4 Specialist 2 | . . . . . 2 . . . . . . . Hunter 3 | . . . . . 1 . . 1 . 1 . . Programmer 5 | . . . . . . 1 1 . . 1 1 1 Decomposer 1 | . . . . . . . 1 . . . . . Savage 1 | . . . . . . . . . . . . 1 Best Kill Streak 4 | 3 1 2 . 2 4 2 4 1 . 3 1 4 Combat Bots Only 4 | . . 2 . 2 3 2 4 1 . 3 1 4 Max Kills in Single Turn 2 | 1 1 1 . 1 2 1 1 1 . 1 1 1 Gunslinging . | . . . . . . . . . . . . . Exploded . | . . . . . . . . . . . . . Melee 1 | . . . . . 1 1 . . . 1 1 1 Uniques/NPCs Destroyed . | . . . . . . . . . . . . . Combat | -11 -10 -10 -10 -9 -8 -7 -7 -7 -7 -6 -6 -6 -------- Run | Yrd Mat Min Exi Min Mat Fac Low Low Zio Pro Fac Ext Hostile Shots Fired 875 | . 4 3 . 37 83 78 75 4 . 231 62 298 Missed 285 | . 2 1 . 8 19 14 23 1 . 84 19 114 Hits 590 | . 2 2 . 29 64 64 52 3 . 147 43 184 Melee 7 | . . . . . . . 7 . . . . . Projectile 583 | . 2 2 . 29 64 64 45 3 . 147 43 184 Critical Strikes 14 | . . . . 1 3 . 3 . . 4 . 3 Damage Taken 8087 | . 15 29 . 243 965 635 882 54 . 2178 545 2541 Core 1538 | . . 12 . 36 100 139 109 . . 276 153 713 Absorbed by Shields . | . . . . . . . . . . . . . Regen/Repaired (Parts) 210 | . . . . . 61 149 . . . . . . Core Remaining (%) 71 | 100 . . . 80 81 . . . . 25 . . Volleys Fired 189 | 12 6 3 . 17 38 6 29 4 1 25 2 46 Largest 3 | 2 2 2 . 2 3 2 3 3 3 3 3 3 Hottest 240 | 40 40 80 . 145 204 160 240 240 210 240 152 168 Shots Fired 453 | 24 12 6 . 28 96 13 83 12 3 49 6 121 Gun 282 | 24 12 3 . 17 58 11 76 12 2 38 4 25 Cannon 167 | . . 3 . 11 38 2 7 . 1 11 2 92 Launcher 4 | . . . . . . . . . . . . 4 Special . | . . . . . . . . . . . . . Kinetic 174 | 24 12 3 . . 12 . . . . 17 4 102 Thermal 266 | . . 3 . 28 84 11 76 12 3 32 2 15 Explosive 4 | . . . . . . . . . . . . 4 Electromagnetic 9 | . . . . . . 2 7 . . . . . Robot Hit Streak 25 | 5 1 4 . 8 14 5 25 6 . 16 14 16 Robot Miss Streak 7 | 3 7 1 . 3 5 5 4 2 . 4 2 3 Penetration Max . | . . . . . . . . . . . . . Secondary Targets 3 | . . . . . . 1 2 . . . . . Max Gunslinging Chain 1 | . . . . . . 1 1 . . . . . Shots Hit Robots 335 | 15 3 4 . 16 66 27 64 8 . 54 12 66 Core Hits 197 | 6 2 4 . 6 28 12 46 5 . 35 10 43 Critical Kills . | . . . . . . . . . . . . . Critical Parts Destroyed . | . . . . . . . . . . . . . Critical Strikes 12 | . . . . 1 2 1 . . . 4 . 4 Burn 3 | . . . . 1 2 . . . . . . . Blast 3 | . . . . . . . . . . . . 3 Sever 6 | . . . . . . 1 . . . 4 . 1 Melee Attacks 228 | . . . . . 7 25 . . . 37 12 147 Impact 21 | . . . . . . . . . . . . 21 Slashing 207 | . . . . . 7 25 . . . 37 12 126 Piercing . | . . . . . . . . . . . . . Sneak Attacks 8 | . . . . . 2 2 . . . . . 4 Combat Hostiles . | . . . . . . . . . . . . . Follow-up Attacks . | . . . . . . . . . . . . . Damage Inflicted 8431 | 116 26 47 . 301 1561 799 1627 122 . 1425 376 2031 Guns 3783 | 116 26 13 . 133 762 152 1481 122 . 530 111 337 Cannons 2504 | . . 34 . 168 609 18 146 . . 136 8 1385 Explosions . | . . . . . . . . . . . . . Melee 2144 | . . . . . 190 629 . . . 759 257 309 Ramming . | . . . . . . . . . . . . . Kinetic 2014 | 116 26 13 . . 145 . . . . 159 69 1486 Thermal 4109 | . . 34 . 301 1226 152 1481 122 . 507 50 236 Explosive . | . . . . . . . . . . . . . Electromagnetic 164 | . . . . . . 18 146 . . . . . Impact 90 | . . . . . . . . . . . . 90 Slashing 2054 | . . . . . 190 629 . . . 759 257 219 Piercing . | . . . . . . . . . . . . . Highest Corruption 3 | . . . . . . 3 3 3 3 1 . 2 Average Corruption 2 | . . . . . . 2 3 3 3 1 . 2 Corruption Purged . | . . . . . . . . . . . . . Corruption Blocked . | . . . . . . . . . . . . . Effects 66 | . . . . . . 6 10 14 2 7 . 27 Message Errors 18 | . . . . . . . 4 5 . 1 . 8 Matter Fused 13 | . . . . . . . 2 2 1 2 . 6 Heat Flow Errors 8 | . . . . . . 1 1 1 1 . . 4 Energy Discharges 5 | . . . . . . 1 . 2 . 1 . 1 Parts Rejected 1 | . . . . . . . . . . 1 . . Parts Fused 1 | . . . . . . . . 1 . . . . Data Loss (minor) 9 | . . . . . . 2 1 2 . 2 . 2 Data Loss (major) 4 | . . . . . . 1 . . . . . 3 Misfires 3 | . . . . . . 1 1 . . . . 1 Alerts 2 | . . . . . . . 1 1 . . . . Weapon Failures 2 | . . . . . . . . . . . . 2 Overload Shots . | . . . . . . . . . . . . . Overflow Damage 245 | . . . . . 59 70 . . . . 35 81 Projectiles 32 | . . . . . 19 . . . . . . 13 Explosions . | . . . . . . . . . . . . . Melee 213 | . . . . . 40 70 . . . . 35 68 Knockbacks 15 | . . . . . 4 . . . . . . 11 Impact 1 | . . . . . . . . . . . . 1 Kinetic 14 | . . . . . 4 . . . . . . 10 Secondary . | . . . . . . . . . . . . . Self-Inflicted Damage . | . . . . . . . . . . . . . Shots . | . . . . . . . . . . . . . Rammed . | . . . . . . . . . . . . . Targets Rammed . | . . . . . . . . . . . . . Kicked . | . . . . . . . . . . . . . Crushed . | . . . . . . . . . . . . . Highest Temperature 619 | . . 106 . 498 619 98 125 115 29 251 66 238 Average Temperature 138 | . . 57 . 212 199 50 52 55 29 110 39 57 Received Heat Transfer 2252 | . . 15 . . 243 99 150 . . 1010 96 639 Effects 25 | . . . . 5 19 . . . . 1 . . Shutdowns 4 | . . . . 1 3 . . . . . . . Energy Bleed 2 | . . . . . 1 . . . . 1 . . Interference 8 | . . . . 3 5 . . . . . . . Matter Decay 2 | . . . . 1 1 . . . . . . . Short Circuit 2 | . . . . . 2 . . . . . . . Damage (minor) 3 | . . . . . 3 . . . . . . . Damage (major) 4 | . . . . . 4 . . . . . . . Siege Activations . | . . . . . . . . . . . . . Martial Activations . | . . . . . . . . . . . . . Shielding Activations . | . . . . . . . . . . . . . Robots Disrupted . | . . . . . . . . . . . . . Combat Hostiles . | . . . . . . . . . . . . . Robots Corrupted 1 | . . . . . . . . . . . . 1 Combat Hostiles . | . . . . . . . . . . . . . Parts Fried 4 | . . . . . . . . . . . . 4 Impact Corruptions 2 | . . . . . . . . . . . . 2 Robots Melted 1 | . . . . . 1 . . . . . . . Combat Hostiles 1 | . . . . . 1 . . . . . . . Parts Melted 28 | . . . . 3 10 . 10 3 . 2 . . Heat Transferred 8966 | . . 74 . 705 2567 350 3284 275 . 1086 100 525 Parts Sabotaged . | . . . . . . . . . . . . . Parts Stolen . | . . . . . . . . . . . . . Parts Stripped . | . . . . . . . . . . . . . Power Chain Reactions . | . . . . . . . . . . . . . Alert | -11 -10 -10 -10 -9 -8 -7 -7 -7 -7 -6 -6 -6 ------- Run | Yrd Mat Min Exi Min Mat Fac Low Low Zio Pro Fac Ext Maximum Alert Level . | . . . . . . . . . . . . . Low Security (%) 100 | 100 100 100 . 100 100 100 . . . . 100 100 Level 1 . | . . . . . . . . . . . . . Level 2 . | . . . . . . . . . . . . . Level 3 . | . . . . . . . . . . . . . Level 4 . | . . . . . . . . . . . . . Level 5 . | . . . . . . . . . . . . . High Security . | . . . . . . . . . . . . . Max Security . | . . . . . . . . . . . . . Peak Influence 143 | 5 7 50 . 20 143 55 . . . . 30 106 Initial 51 | . . . . . . 51 . . . . 6 . Average 18 | 1 . 9 . . 45 10 . . . . 3 23 Influence Increases 2001 | 15 7 50 . 61 532 172 316 42 . 280 83 443 Destroy 0b10 Robot/C 1260 | . . 40 . 40 300 100 280 20 . 200 40 240 Destroy 0b10 Robot/NC 125 | 15 5 . . 20 25 10 . 10 . . 5 35 Destroy Leader 266 | . 2 10 . . 88 30 30 10 . 30 22 44 Allied During Kill 21 | . . . . . 7 . 6 2 . 5 . 1 Successful Hack 87 | . . . . . 29 15 . . . . 14 29 Disable Machine 60 | . . . . . 15 . . . . . . 45 Destroy Structure 47 | . . . . 1 8 2 . . . . 2 34 Lose Combat Pursuer 135 | . . . . . 60 15 . . . 45 . 15 Influence Decreases 2001 | 15 7 20 30 61 417 287 230 128 . 270 93 443 Entered New Map 115 | . . . 30 . . 64 . 17 . . 4 . Time Decay 1573 | 15 7 20 . 51 315 203 210 111 . 166 88 387 Lost Part 246 | . . . . 10 60 20 20 . . 79 1 56 Lost Ally 45 | . . . . . 20 . . . . 25 . . Purge Threat 22 | . . . . . 22 . . . . . . . Squads Dispatched 12 | . 2 . . 1 4 1 . . . . 2 2 Investigation 5 | . 1 . . 1 1 . . . . . . 2 Extermination 2 | . . . . . . 1 . . . . 1 . Reinforcement 5 | . 1 . . . 3 . . . . . 1 . Assault . | . . . . . . . . . . . . . Garrison . | . . . . . . . . . . . . . Intercept . | . . . . . . . . . . . . . Searches Triggered . | . . . . . . . . . . . . . Construction Impeded . | . . . . . . . . . . . . . Haulers Reinforced . | . . . . . . . . . . . . . Active Scanning Responses . | . . . . . . . . . . . . . Cargo Convoy Interrupts . | . . . . . . . . . . . . . Stealth | -11 -10 -10 -10 -9 -8 -7 -7 -7 -7 -6 -6 -6 --------- Run | Yrd Mat Min Exi Min Mat Fac Low Low Zio Pro Fac Ext Distress Signals 3 | . . . . . 1 . . . . . . 2 Communications Jammed . | . . . . . . . . . . . . . Distress Signals . | . . . . . . . . . . . . . Times Spotted 97 | . 5 2 . 4 28 6 14 1 . 15 2 20 Peak Tracking Total 8 | . 4 2 . 4 8 2 5 1 . 4 1 5 Tactical Retreats 7 | . . . . . 2 1 . . . 3 . 1 Traps | -11 -10 -10 -10 -9 -8 -7 -7 -7 -7 -6 -6 -6 ------- Run | Yrd Mat Min Exi Min Mat Fac Low Low Zio Pro Fac Ext Traps Triggered 5 | . . . . . . 2 . . . . 3 . Indirectly . | . . . . . . . . . . . . . Trap Hack Attempts . | . . . . . . . . . . . . . Triggered . | . . . . . . . . . . . . . Disarmed . | . . . . . . . . . . . . . Reprogrammed . | . . . . . . . . . . . . . Reused . | . . . . . . . . . . . . . Traps Extracted . | . . . . . . . . . . . . . Installed . | . . . . . . . . . . . . . Triggered . | . . . . . . . . . . . . . Machines | -11 -10 -10 -10 -9 -8 -7 -7 -7 -7 -6 -6 -6 ---------- Run | Yrd Mat Min Exi Min Mat Fac Low Low Zio Pro Fac Ext Machines Disabled 4 | . . . . . 1 . . . . . . 3 Max in Single Turn 1 | . . . . . 1 . . . . . . 1 Garrison Access 1 | . . . . . . . . . . . 1 . Machines Repaired . | . . . . . . . . . . . . . Machines Dismantled . | . . . . . . . . . . . . . Machines Sabotaged . | . . . . . . . . . . . . . Overloaded Fab Kills . | . . . . . . . . . . . . . Hacking | -11 -10 -10 -10 -9 -8 -7 -7 -7 -7 -6 -6 -6 --------- Run | Yrd Mat Min Exi Min Mat Fac Low Low Zio Pro Fac Ext Machines Accessed 32 | . 5 . 5 2 6 3 . . . 1 5 5 Terminals 16 | . 4 . . . 3 1 . . . 1 3 4 Fabricators 1 | . . . . . . 1 . . . . . . Repair Stations 3 | . . . . . 1 1 . . . . . 1 Recycling Units 2 | . 1 . . . . . . . . . 1 . Scanalyzers 2 | . . . . . 2 . . . . . . . Garrison Access 1 | . . . . . . . . . . . 1 . Total Hacks 94 | . 16 . 20 2 26 8 . . . 1 6 15 Successful 55 | . 6 . 20 2 15 4 . . . 1 5 2 Failed 38 | . 10 . . . 10 4 . . . . 1 13 Catastrophic 6 | . 1 . . . 1 . . . . . . 4 Database Lockouts 1 | . . . . . 1 . . . . . . . Manual 9 | . 2 . 1 . 1 3 . . 1 . . 1 Terminals 49 | . 14 . . . 14 3 . . . 1 4 13 Fabricators 3 | . . . . . . 3 . . . . . . Repair Stations 6 | . . . . . 2 2 . . . . . 2 Recycling Units 3 | . 2 . . . . . . . . . 1 . Scanalyzers 10 | . . . . . 10 . . . . . . . Garrison Access 1 | . . . . . . . . . . . 1 . Terminal Hacks 38 | . 4 . 20 2 6 1 . . . 1 3 1 Record 20 | . . . 19 . . . . . . 1 . . Robot Analysis 1 | . 1 . . . . . . . . . . . Prototype ID Bank 2 | . . . . . 2 . . . . . . . Open Door 3 | . . . . 2 . . . . . . 1 . Open DSF 1 | . . . . . . . . . . . 1 . Emergency Access Points 1 | . . . . . 1 . . . . . . . Unreport Threat 1 | . . . . . 1 . . . . . . . Locate Traps 2 | . 1 . . . . . . . . . 1 . Dispatch Records 1 | . . . . . . 1 . . . . . . Maintenance Status 1 | . . . . . 1 . . . . . . . Recall Investigation 1 | . 1 . . . . . . . . . . . Zone Layout 3 | . 1 . . . 1 . . . . . . 1 Proto ID Catalog 1 | . . . 1 . . . . . . . . . Fabricator Hacks 1 | . . . . . . 1 . . . . . . Build 1 | . . . . . . 1 . . . . . . Repair Station Hacks 5 | . . . . . 2 2 . . . . . 1 Scan Component 3 | . . . . . 1 1 . . . . . 1 Repair 2 | . . . . . 1 1 . . . . . . Recycling Unit Hacks 1 | . . . . . . . . . . . 1 . Report Inventory 1 | . . . . . . . . . . . 1 . Scanalyzer 7 | . . . . . 7 . . . . . . . Insert Component 1 | . . . . . 1 . . . . . . . Retrieve Study 6 | . . . . . 6 . . . . . . . Garrison Access Hacks 1 | . . . . . . . . . . . 1 . Seal Access 1 | . . . . . . . . . . . 1 . Unauthorized Hacks . | . . . . . . . . . . . . . Terminals . | . . . . . . . . . . . . . Fabricators . | . . . . . . . . . . . . . Repair Stations . | . . . . . . . . . . . . . Recycling Units . | . . . . . . . . . . . . . Scanalyzers . | . . . . . . . . . . . . . Garrison Access . | . . . . . . . . . . . . . Data Cores Recovered 1 | . . . . . . . . . . . . 1 Used . | . . . . . . . . . . . . . Hacking Detections 17 | . 5 . . . 4 2 . . . . 1 5 Full Trace Events 5 | . 2 . . . 1 . . . . . . 2 Feedback Events . | . . . . . . . . . . . . . Feedback Blocked . | . . . . . . . . . . . . . Robot Schematics Acquired 3 | . . . . . . . . . 3 . . . Robots Built . | . . . . . . . . . . . . . Authchips . | . . . . . . . . . . . . . Time . | . . . . . . . . . . . . . Total Robot Build Rating . | . . . . . . . . . . . . . Part Schematics Acquired 12 | . . . . . . . . . 12 . . . Parts Built 2 | . . . . . . 2 . . . . . . Authchips . | . . . . . . . . . . . . . Time 95 | . . . . . . 95 . . . . . . Total Part Build Rating 10 | . . . . . . 10 . . . . . . Part Studies Acquired 4 | . . . . . 4 . . . . . . . Parts Repaired 2 | . . . . . 1 1 . . . . . . Time 58 | . . . . . 32 26 . . . . . . Parts Recycled . | . . . . . . . . . . . . . Recycled Matter . | . . . . . . . . . . . . . Retrieved Matter . | . . . . . . . . . . . . . Retrieved Components . | . . . . . . . . . . . . . Parts Scanalyzed 1 | . . . . . 1 . . . . . . . Part Schematics Acquired . | . . . . . . . . . . . . . Parts Damaged . | . . . . . . . . . . . . . Bothacking | -11 -10 -10 -10 -9 -8 -7 -7 -7 -7 -6 -6 -6 ------------ Run | Yrd Mat Min Exi Min Mat Fac Low Low Zio Pro Fac Ext Used RIF Installer . | . . . . . . . . . . . . . Robots Hacked . | . . . . . . . . . . . . . Non-combat . | . . . . . . . . . . . . . Combat . | . . . . . . . . . . . . . Robot Hacks Applied . | . . . . . . . . . . . . . Relay Couplers Released . | . . . . . . . . . . . . . Fabnet Peak Effective % . | . . . . . . . . . . . . . Robots Rewired 5 | . . . . . . . 1 . . . . 4 Allies Hacked . | . . . . . . . . . . . . . Hacks Repelled . | . . . . . . . . . . . . . Allies | -11 -10 -10 -10 -9 -8 -7 -7 -7 -7 -6 -6 -6 -------- Run | Yrd Mat Min Exi Min Mat Fac Low Low Zio Pro Fac Ext Total Allies 10 | . . . . . 3 . 1 . 2 . . 4 Largest Group 4 | . . . . . 1 . 1 1 3 3 . 4 Highest-Rated Group 113 | . . . . . 15 . 20 20 64 64 . 113 Highest-Rated Ally 31 | . . . . . 15 . 20 20 30 30 . 31 Total Orders 7 | . . . . 7 . . . . . . . . RETURN 7 | . . . . 7 . . . . . . . . Ally Attacks 43 | . . . . . 18 . . . . 11 . 14 Total Damage 556 | . . . . . 103 . . . . 220 . 233 Kills 4 | . . . . . 3 . . . . 1 . . Allies Corrupted . | . . . . . . . . . . . . . Allies Melted . | . . . . . . . . . . . . . Intel | -11 -10 -10 -10 -9 -8 -7 -7 -7 -7 -6 -6 -6 ------- Run | Yrd Mat Min Exi Min Mat Fac Low Low Zio Pro Fac Ext Active Infowar (turns) 855 | 21 125 142 412 155 . . . . . . . . Terrain 97 | . . . . 97 . . . . . . . . Structural 542 | . . 119 412 11 . . . . . . . . Seismic 216 | 21 125 23 . 47 . . . . . . . . Robot Analysis Total 1 | . 1 . . . . . . . . . . . Derelict Logs Recovered 7 | . . . . 1 . . 2 1 2 1 . . Drone Launches 17 | . . . . 6 11 . . . . . . . Drone Recoveries 16 | . . . . 6 10 . . . . . . . Exploration | -11 -10 -10 -10 -9 -8 -7 -7 -7 -7 -6 -6 -6 ------------- Run | Yrd Mat Min Exi Min Mat Fac Low Low Zio Pro Fac Ext Turns Passed 9973 | 90 125 142 412 626 1003 1049 588 667 947 1588 823 1913 Spaces Moved 6297 | 51 122 139 454 556 651 515 309 519 748 1050 205 978 Core 15 | 2 . . . . 8 . . . . . 3 2 Treads 280 | . . . . . . . . . . . 141 139 Legs 3293 | . . . . . 87 515 309 519 748 1050 61 4 Wheels 2709 | 49 122 139 454 556 556 . . . . . . 833 Hover . | . . . . . . . . . . . . . Flight . | . . . . . . . . . . . . . Fastest Speed 50 | 50 90 90 90 80 85 105 120 120 120 120 160 90 Average Speed 123 | 88 90 90 90 89 102 135 149 120 120 134 239 134 Slowest Speed 450 | 90 90 90 90 90 450 190 190 120 120 260 260 260 Overloaded Moves . | . . . . . . . . . . . . . Propulsion Burnouts . | . . . . . . . . . . . . . Robots Hopped . | . . . . . . . . . . . . . Potential Cave-ins 4 | . . . . . . . . . . 4 . . Cave-ins Triggered . | . . . . . . . . . . . . . Exploration Rate (%) 49 | 5 27 27 73 87 51 9 54 74 78 96 6 54 Regions Visited 12 Branch Regions 8 Pre-discovered Areas 5 | . . . 1 1 . . . . 3 . . . Known Exits Taken 1 | . . . . . . . . . . . 1 . Unknown Exits Taken 11 | 1 1 1 1 1 1 1 1 1 1 1 . . Scrap Searched 9 | . . . . 1 . . 2 2 3 1 . . Spaces Dug 22 | . . . . . 2 2 . . . 8 2 8 Terrain Destroyed 69 | . . . . 1 9 2 . . . 8 2 47 Melee 22 | . . . . . 2 2 . . . 8 2 8 Projectile 20 | . . . . 1 7 . . . . . . 12 AOE 27 | . . . . . . . . . . . . 27 Terrain Rammed . | . . . . . . . . . . . . . Walls Destroyed . | . . . . . . . . . . . . . Machines Disabled . | . . . . . . . . . . . . . Actions | -11 -10 -10 -10 -9 -8 -7 -7 -7 -7 -6 -6 -6 --------- Run | Yrd Mat Min Exi Min Mat Fac Low Low Zio Pro Fac Ext Total 7861 | 73 127 148 457 656 901 810 358 552 795 1142 519 1323 Wait 874 | . . . . 71 170 228 6 13 34 2 288 62 Move 6285 | 50 121 138 453 555 650 514 308 518 747 1049 204 978 Hop . | . . . . . . . . . . . . . Pick Up 34 | 4 . 3 1 1 6 4 2 3 2 2 2 4 Fast Attach 45 | 7 . . . 2 4 5 3 1 . 10 6 7 Attach 21 | . . . . 2 4 4 . . . 7 3 1 Detach 7 | . . . . . 3 1 . . . 1 . 2 Swap 76 | . . 4 . 4 12 10 2 2 7 6 2 27 Drop 34 | . . . 1 4 7 3 2 4 3 1 . 9 Fire 189 | 12 6 3 . 17 38 6 29 4 1 25 2 46 Melee 228 | . . . . . 7 25 . . . 37 12 147 Ram . | . . . . . . . . . . . . . Kick . | . . . . . . . . . . . . . Crush . | . . . . . . . . . . . . . Escape Stasis 10 | . . . . . . 10 . . . . . . Rewire 58 | . . . 2 . . . 6 7 1 2 . 40 Trap . | . . . . . . . . . . . . . Miscellaneous . | . . . . . . . . . . . . . Route ------- -11/Scrapyard -10/Materials -10/Mines -10/Exiles (discovered 2 exits: *Min x2) -9/Mines -8/Materials -7/Factory -7/Lower Caves -7/Lower Caves -7/Zion -6/Proximity Caves -6/Factory (discovered 3 exits: Fac / Low / *Ext) -6/Extension History --------- Turn | Location | Event 9 | -11/Scrapyard | Discovered new exit (range 15) 91 | -11/Scrapyard | Entered Materials 209 | -10/Materials | Discovered new exit (range 8) 216 | -10/Materials | Entered Mines 308 | -10/Mines | Found a Scrap Suit stashed away for nefarious purposes 310 | -10/Mines | Found Scrap Suit 317 | -10/Mines | Build established: Mutant 354 | -10/Mines | Deemed a non-threat by the Exiles lab entrance 354 | -10/Mines | Discovered new exit (range 6) 358 | -10/Mines | Entered Exiles 372 | -10/Exiles | Discovered new exit (range 15) 386 | -10/Exiles | Met 8R-AWN 404 | -10/Exiles | Met EX-HEX 461 | -10/Exiles | Met EX-DEC 487 | -10/Exiles | Learned location of Zion (-7) 529 | -10/Exiles | Discovered new exit (range 11) 598 | -10/Exiles | Met EX-BIN 613 | -10/Exiles | Aligned with FarCom system 614 | -10/Exiles | Given EX-Vault access code 666 | -10/Exiles | Opened EX-Vault 676 | -10/Exiles | Found Superbattery 693 | -10/Exiles | Warned to stay clear of 0b10 Research branches 770 | -10/Exiles | Left Exiles lab with Superbattery 770 | -10/Exiles | Entered Mines 819 | -9/Mines | Lost 3 parts (1p1n1u) 883 | -9/Mines | Met a Derelict shopkeep closing up shop 1066 | -9/Mines | Found the Drone Emporium 1070 | -9/Mines | Found Prototype Device 1070 | -9/Mines | Identified Splice Drone Bay 1225 | -9/Mines | Received a Rocket Launcher from a helpful Derelict 1365 | -9/Mines | Build established: Scavenger-Mutant 1387 | -9/Mines | Discovered new exit (range 9) 1396 | -9/Mines | Entered Materials 1396 | -8/Materials | Evolved 4 slots: Utility x3, Weapon x1 1741 | -8/Materials | Repaired Particle Gun? 1741 | -8/Materials | Central database locked down 1773 | -8/Materials | Build established: Skirmisher 2244 | -8/Materials | Lost 6 parts (1p2n3w) 2396 | -8/Materials | Discovered new exit (range 3) 2399 | -8/Materials | Entered Factory 2399 | -7/Factory | Evolved 2 slots: Propulsion x1, Utility x1 2533 | -7/Factory | Build established: Scavenger-Mutant 2696 | -7/Factory | Fabricated Arm. Leg (x2) 2887 | -7/Factory | Repaired Sml. Storage Unit 3146 | -7/Factory | Build established: Mutant 3412 | -7/Factory | Discovered new exit (range 11) 3448 | -7/Factory | Entered Lower Caves 3537 | -7/Lower Caves | Learned location of 2 exits from Factory 3703 | -7/Lower Caves | Attracted the attention of an 0b10 outpost 3795 | -7/Lower Caves | Learned 4 Factory zone layouts 3850 | -7/Lower Caves | Attracted the attention of an 0b10 checkpoint 3889 | -7/Lower Caves | Encountered a Warlord checkpoint 4025 | -7/Lower Caves | Discovered new exit (range 10) 4036 | -7/Lower Caves | Entered another Lower Caves area 4036 | -7/Lower Caves | Accompanied by 1 ally 4220 | -7/Lower Caves | Build established: Gunner 4332 | -7/Lower Caves | Encountered a Warlord checkpoint 4343 | -7/Lower Caves | Learned location of 1 exit from Factory 4518 | -7/Lower Caves | Discovered new exit (range 6) 4703 | -7/Lower Caves | Entered Zion 4703 | -7/Zion | Accompanied by 1 ally 4735 | -7/Zion | Given the Hacking Drone Bay 4735 | -7/Zion | Found Prototype Device 4735 | -7/Zion | Identified Hacking Drone Bay 4754 | -7/Zion | System corruption cleaned by Quarantine Array 4904 | -7/Zion | Learned Factory stockpile data 4910 | -7/Zion | Learned Factory terminal intel 4934 | -7/Zion | Learned location of Armory (-3) 4957 | -7/Zion | Learned location of Quarantine (-2) 5004 | -7/Zion | Rebuked by Imprinter 5050 | -7/Zion | Gained Derelict followers 5143 | -7/Zion | Found Prototype Special Weapon 5143 | -7/Zion | Identified RU-N14's Throwing Claymores 5432 | -7/Zion | Found Prototype Device 5432 | -7/Zion | Identified Phasing AFG 5558 | -7/Zion | Learned location of Warlord (-5) 5628 | -7/Zion | Discovered new exit (range 13) 5650 | -7/Zion | Entered Proximity Caves 5650 | -6/Proximity Caves | Accompanied by 3 allies 5847 | -6/Proximity Caves | Lost 3 allies 5866 | -6/Proximity Caves | Lost 4 parts (1n1u2w) 6161 | -6/Proximity Caves | Core integrity fell below 50% 6172 | -6/Proximity Caves | Lost 4 parts (1p1u2w) 6223 | -6/Proximity Caves | Lost 3 parts (1n1u1w) 6396 | -6/Proximity Caves | Spotted B-75 Beast 6434 | -6/Proximity Caves | Build established: Mutant 6894 | -6/Proximity Caves | Attracted the attention of an 0b10 checkpoint 7114 | -6/Proximity Caves | Learned Factory interactive machine intel 7228 | -6/Proximity Caves | Discovered new exit (range 5) 7238 | -6/Proximity Caves | Entered Factory 7238 | -6/Factory | Evolved 2 slots: Propulsion x1, Utility x1 7239 | -6/Factory | Identified exit to Lower Caves 7239 | -6/Factory | Identified exit to Extension 7239 | -6/Factory | Identified exit to Factory 7242 | -6/Factory | Loaded intel: 56 interactive machine locations 7243 | -6/Factory | Loaded intel: 28 terminal locations 7337 | -6/Factory | Identified exit to DSF 7449 | -6/Factory | Lost 6 parts (1p1n3u1w) 7480 | -6/Factory | Found Prototype Processor 7480 | -6/Factory | Identified Exp. Targeting Computer 7806 | -6/Factory | Build established: Gunner 8061 | -6/Factory | Entered Extension 8277 | -6/Extension | Build established: Scavenger-Gunner 8913 | -6/Extension | Spotted B-75 Beast 9944 | -6/Extension | Spotted B-75 Beast 9951 | -6/Extension | Core integrity fell below 50% 9969 | -6/Extension | Core integrity fell below 20% 9974 | -6/Extension | Destroyed by B-75 Beast with Magnetic Acceleration Cannon Last Messages --------------- 09953_ Neutrino Core destroyed. 09955_ B-75 Beast suffers critical hit (Burn). 09956_ Magnetic Acceleration Cannon destroyed. 09957_ Imp. Light Armor Plating destroyed. 09957_ Knocked back. 09957_ U-05 Engineer builds a Wall. 09960_ Adv. Heat Sink blasted off. 09961_ U-05 Engineer builds a Wall. 09962_ Machine disabled. 09962_ Magnetic Acceleration Cannon destroyed. 09964_ Com. Wheel+ destroyed. 09965_ Knocked back. 09966_ U-05 Engineer builds a Wall. 09969_ 0W-WPX(g) destroyed. 09970_ Acquired 2 matter. 09970_ B-75 Beast suffers critical hit (Burn). 09971_ Imp. Medium Treads destroyed. 09972_ Weapon Cycler destroyed. 09972_ B-75 Beast suffers critical hit (Burn). Map ----- +----------------------------------------------------+ | ??????????????# + #?????????????????????????? | | ??????????????# # #?????????????????????????? | | ??????????????# # #?????????????????????????? | | ??????????????# # #?????????????????????????? | | ??????????????######## #?????????????????????????? | | ?????????????????????# #?????????????????????????? | | ?????????????????????# #?????????????????????????? | | ?????????????????????# #?????????????????????????? | | ?????????????????????#%###????????#??????????????? | | ?????????????????????# # ######?? #??????????????? | | ??????????????????#### ### ## ### ###????????????? | | ??????????????????## !% "" ""#????????????? | | ??????????????????## % %Y Y u" ##???????????? | | ???????????????????# % % "#???????????? | | ???????????????????# ! #????????????? | | #################### ######???????? | | ???????? | | % ??????? | | ku % % ??????? | | BB% R ??????? | | %BB BB utt ??????? | | #################### BB #####????????? | | ??????????????????## % % #????????????? | | ??????????????????#; % #????????????? | | ??????????????????## #????????????? | | ???????????????????# @ #????????????? | | ???????????????????#####;T#"""#######????????????? | | ???????????????????????####??????????????????????? | | ?????????????????????????????????????????????????? | | | | | | | | | | | | | | | | | | | | | | | | | | | | | | | | | | | | | | | | | | | +----------------------------------------------------+ Best States ------------- Heat Dissipation 65 Energy Generation 19 Energy Capacity 1815 Matter Stores 300 Matter Capacity 300 Sight Range 16 Terrain Scan Range 14 Terrain Scan Density 10 Base Temperature (-) 100 Armor Coverage 375 Weapon Cycling 15 Evasion (%) 55 Targeting Accuracy 20 Melee Accuracy 5 Target Analysis 6 Recoil Reduction 1 Offensive Hacking 10 Item Schematics ----------------- Matter Compressor | -7/Zion | Archive Transmission Jammer | -7/Zion | Archive Plasma Rifle | -7/Zion | Archive Energy Well | -7/Zion | Archive Imp. EM Pulse Cannon | -7/Zion | Archive Adv. Shield Generator | -7/Zion | Archive Imp. Hacking Suite | -7/Zion | Archive Adv. ECM Suite | -7/Zion | Archive Magnetic Acceleration Cannon | -7/Zion | Archive Xenon Bombardment Thruster | -7/Zion | Archive Imp. Transmission Jammer | -7/Zion | Archive Corruption Screen | -7/Zion | Archive Robot Schematics ------------------ R-06 Scavenger | -7/Zion | Archive X-57 Shotgunner | -7/Zion | Archive H-77 Assassin | -7/Zion | Archive Fabricated ------------ Arm. Leg | x2 | -7/Factory | Preloaded Repaired ---------- Particle Gun | 32% | -8/Materials Sml. Storage Unit | 1% | -7/Factory Studied --------- Flak Cannon | -8/Materials | Hacked Lgt. Nuclear Core | -8/Materials | Hacked Wheel | -8/Materials | Hacked Com. Wheel | -8/Materials | Hacked Alien Tech Used ----------------- None Achievements -------------- None Challenges ------------ None Game ------ Seed BarrageStorageHammerchucker Manual? 0 Play Time 01:40:59 Cumulative 48.4 hours Start 2026.05.03 @ 15:14:07 End 2026.05.03 @ 18:52:05 Sessions 5 Manual Loads 0 Difficulty Rogue Special Mode None Game No. 45 Rogue 45 Adventurer 0 Explorer 0 Win Type - Total 0 Types 0/0/0/0/0/0/0/0/0/0 Lore% 23 Gallery% 29 Achievement% 22 Wizard Run 0 Options --------- Layout 2 ASCII 0 Keyboard 1 Movement Vi Keybinds 0 Fullscreen 2 Font 24/Smallcaps Map View 50x44 Zoom Use 0% Tactical HUD 1 Map Filters NONE Filters NONE Steam 1 RUN: 6c8449be-c75f-4ecc-b106-f8aba8bba6d2